fUSD/lending_fUSD_20250107
["ID","MTS","AMOUNT","RATE_DAILY","PERIOD"]
[348061750,1736289065478,-682.63,0.00010883,2]
[348061751,1736289065488,-1219.26,0.00010883,2]
[348061752,1736289065500,-1298.36,0.00010883,2]
[348061753,1736289065510,-2206.26,0.00010883,2]
[348061754,1736289065520,-906.79,0.00010883,2]
[348061755,1736289065530,-500.0,0.00010883,2]
[348061756,1736289065540,-728.63,0.00010883,2]
[348061757,1736289065549,-721.69,0.00010883,2]
[348061758,1736289065559,-1392.61,0.00010883,2]
[348061759,1736289065569,-562.72,0.00010883,2]
[348061760,1736289065581,-500.0,0.00010883,2]
[348061761,1736289065591,-545.27,0.00010883,2]
[348061762,1736289065602,-500.0,0.00010883,2]
[348061763,1736289065613,-1319.55,0.00010883,2]
[348061764,1736289065623,-1199.74,0.00010883,2]
[348061765,1736289065633,-5915.85,0.00010883,2]
[348061766,1736289065643,-500.0,0.00010883,2]
[348061767,1736289065653,-500.0,0.00010883,2]
[348061768,1736289065663,-1352.72,0.00010883,2]
[348061769,1736289065673,-820.14,0.00010883,2]
[348061770,1736289065682,-500.0,0.00010883,2]
[348061771,1736289065692,-4685.7,0.00010883,2]
[348061772,1736289065702,-526.8,0.00010883,2]
[348061773,1736289065711,-826.52,0.00010883,2]
[348061774,1736289065721,-1489.12,0.00010883,2]
[348061775,1736289065732,-500.0,0.00010883,2]
[348061776,1736289065746,-1165.84,0.00010883,2]
[348061777,1736289065755,-821.3,0.00010883,2]
[348061778,1736289065764,-500.0,0.00010883,2]
[348061779,1736289065774,-7521.47,0.00010883,2]
[348061780,1736289065784,-532.47,0.00010883,2]
[348061781,1736289065794,-650.14,0.00010883,2]
[348061782,1736289065804,-1547.09,0.00010883,2]
[348061783,1736289065813,-500.0,0.00010883,2]
[348061784,1736289065823,-3835.85,0.00010883,2]
[348061785,1736289065834,-571.6,0.00010883,2]
[348061786,1736289065843,-9981.27,0.00010883,2]
[348061787,1736289065853,-811.53,0.00010883,2]
[348061788,1736289065863,-831.03,0.00010883,2]
[348061789,1736289065872,-4892.11,0.00010883,2]
[348061790,1736289065883,-1104.75,0.00010883,2]
[348061791,1736289065892,-500.0,0.00010883,2]
[348061792,1736289065902,-1323.97,0.00010883,2]
[348061793,1736289065912,-1106.04,0.00010883,2]
[348061794,1736289065922,-966.21,0.00010883,2]
[348061795,1736289065932,-1629.82,0.00010883,2]
[348061796,1736289065942,-929.03,0.00010883,2]
[348061797,1736289065952,-623.66,0.00010883,2]
[348061798,1736289065962,-1626.87,0.00010883,2]
[348061799,1736289065971,-4948.26,0.00010883,2]
[348061800,1736289065981,-500.0,0.00010883,2]
[348061801,1736289065995,-2317.85,0.00010883,2]
[348061802,1736289066005,-1918.89,0.00010883,2]
[348061803,1736289066015,-1220.07,0.00010883,2]
[348061804,1736289066025,-500.0,0.00010883,2]
[348061805,1736289066036,-590.05,0.00010883,2]
[348061806,1736289066046,-3471.56,0.00010883,2]
[348061807,1736289066057,-773.12,0.00010883,2]
[348061808,1736289066067,-458.38924154,0.00010883,2]
[348061809,1736289066517,-1039.87075846,0.00010883,2]
[348061810,1736289066526,-13.32911754,0.00010883,2]
[348061811,1736289066551,-1029.90088246,0.00010883,2]
[348061812,1736289066561,-853.94,0.00010883,2]
[348061813,1736289066571,-1613.38,0.00010883,2]
[348061814,1736289066581,-500.0,0.00010883,2]
[348061815,1736289066591,-6167.82,0.00010883,2]
[348061816,1736289066602,-500.0,0.00010883,2]
[348061817,1736289066612,-525.23458501,0.00010883,2]
[348061818,1736289066624,-172.06541499,0.00010883,2]
[348061819,1736289066634,-340.62458851,0.00010883,2]
[348061820,1736289066647,-541.34365989,0.00010883,2]
[348061821,1736289067429,-500.0,9.004e-05,2]
[348061822,1736289067439,-500.0,9.278e-05,2]
[348061823,1736289067448,-500.0,9.552e-05,2]
[348061824,1736289067457,-394.58,9.826e-05,2]
[348061825,1736289067467,-9619.0,0.0001046,2]
[348061826,1736289067476,-379.10659149,0.00010811,2]
[348061827,1736289067486,-1333.7917516,0.00010883,2]
[348061828,1736289067495,-1550.3,0.00010883,2]
[348061829,1736289067504,-734.81,0.00010883,2]
[348061830,1736289067514,-1266.38928202,0.00010883,2]
[348061831,1736289067525,-267.56071798,0.00010883,2]
[348061832,1736289067534,-2255.93350637,0.00010883,2]
[348061833,1736289067546,-857.69992783,0.00010883,2]
[348061834,1736289067564,-271.61868026,0.00010883,2]
[348061835,1736289067576,-1000.0,0.00010883,2]
[348061836,1736289067621,-1258.24788554,0.00010883,2]
[348061837,1736289067631,-1779.31,0.00010883,2]
[348061838,1736289067640,-710.35,0.00010883,2]
[348061839,1736289067650,-1282.73,0.00010883,2]
[348061840,1736289067659,-1200.54,0.00010883,2]
[348061841,1736289067668,-3391.47,0.00010883,2]
[348061842,1736289067678,-708.64,0.00010883,2]
[348061843,1736289067688,-1030.31,0.00010883,2]
[348061844,1736289067697,-665.31,0.00010883,2]
[348061845,1736289067706,-2731.7,0.00010883,2]
[348061846,1736289067716,-1503.47,0.00010883,2]
[348061847,1736289067724,-1245.05,0.00010883,2]
[348061848,1736289067734,-613.58,0.00010883,2]
[348061849,1736289067743,-500.0,0.00010883,2]
[348061850,1736289067752,-904.46,0.00010883,2]
[348061851,1736289067762,-765.83,0.00010883,2]
[348061852,1736289067771,-704.18269794,0.00010883,2]
[348061853,1736289067789,-436.06730206,0.00010883,2]
[348061854,1736289067798,-582.24,0.00010883,2]
[348061855,1736289067807,-500.0,0.00010883,2]
[348061856,1736289067816,-500.0,0.00010883,2]
[348061857,1736289067825,-1282.56,0.00010883,2]
[348061858,1736289067834,-1210.65,0.00010883,2]
[348061859,1736289067843,-686.85,0.00010883,2]
[348061860,1736289067852,-500.0,0.00010884,2]
[348061861,1736289067862,-201.78846693,0.00010884,2]
[348061862,1736289067872,-617.04,0.00010884,2]
[348061863,1736289067881,-500.0,0.00010884,2]
[348061864,1736289067890,-500.0,0.00010884,2]
[348061865,1736289067900,-500.0,0.00010884,2]
[348061866,1736289067909,-500.0,0.00010884,2]
[348061867,1736289067918,-221.57787795,0.00010884,2]
[348061868,1736289067928,-500.0,0.00010884,2]
[348061869,1736289067937,-166.54,0.00010884,2]
[348061870,1736289067948,-511.88,0.00010884,2]
[348061871,1736289067957,-500.0,0.00010884,2]
[348061872,1736289067967,-500.0,0.00010884,2]
[348061873,1736289067976,-247.85,0.00010884,2]
[348061874,1736289067985,-500.0,0.00010884,2]
[348061875,1736289067998,-500.0,0.00010884,2]
[348061876,1736289068008,-500.0,0.00010884,2]
[348061877,1736289068018,-500.0,0.00010884,2]
[348061878,1736289068028,-500.0,0.00010884,2]
[348061879,1736289068040,-602.72,0.00010884,2]
[348061880,1736289068049,-172.23118712,0.00010884,2]
[348061881,1736289068058,-500.0,0.00010884,2]
[348061882,1736289068070,-500.0,0.00010884,2]
[348061883,1736289068079,-500.0,0.00010884,2]
[348061884,1736289068088,-500.0,0.00010884,2]
[348061885,1736289068098,-500.0,0.00010884,2]
[348061886,1736289068107,-500.0,0.00010884,2]
[348061887,1736289068117,-940.18,0.00010884,2]
[348061888,1736289068126,-630.65,0.00010884,2]
[348061889,1736289068135,-500.0,0.00010884,2]
[348061890,1736289068144,-500.0,0.00010884,2]
[348061891,1736289068153,-500.0,0.00010884,2]
[348061892,1736289068164,-625.57,0.00010884,2]
[348061893,1736289068173,-500.0,0.00010884,2]
[348061894,1736289068182,-644.24,0.00010884,2]
[348061895,1736289068192,-1039.13,0.00010884,2]
[348061896,1736289068201,-656.03,0.00010884,2]
[348061897,1736289068210,-500.0,0.00010884,2]
[348061898,1736289068220,-500.0,0.00010884,2]
[348061899,1736289068229,-520.75,0.00010884,2]
[348061900,1736289068239,-542.48,0.00010884,2]
[348061901,1736289068249,-637.75,0.00010884,2]
[348061902,1736289068259,-500.0,0.00010884,2]
[348061903,1736289068268,-1110.5,0.00010884,2]
[348061904,1736289068278,-1475.91,0.00010884,2]
[348061905,1736289068287,-500.0,0.00010884,2]
[348061906,1736289068296,-677.59,0.00010884,2]
[348061907,1736289068305,-1381.43,0.00010884,2]
[348061908,1736289068315,-913.76,0.00010884,2]
[348061909,1736289068324,-500.0,0.00010884,2]
[348061910,1736289068333,-761.5,0.00010884,2]
[348061911,1736289068343,-1238.14,0.00010884,2]
[348061912,1736289068353,-1972.05,0.00010884,2]
[348061913,1736289068362,-500.0,0.00010884,2]
[348061914,1736289068371,-500.0,0.00010884,2]
[348061915,1736289068381,-524.35,0.00010884,2]
[348061916,1736289068390,-2487.94,0.00010884,2]
[348061917,1736289068400,-1501.55,0.00010884,2]
[348061918,1736289068409,-1495.51,0.00010884,2]
[348061919,1736289068418,-500.0,0.00010884,2]
[348061920,1736289068428,-1619.55,0.00010884,2]
[348061921,1736289068437,-516.76,0.00010884,2]
[348061922,1736289068446,-676.75,0.00010884,2]
[348061923,1736289068455,-500.0,0.00010884,2]
[348061924,1736289068465,-2032.03,0.00010884,2]
[348061925,1736289068477,-1108.9,0.00010884,2]
[348061926,1736289068486,-500.0,0.00010884,2]
[348061927,1736289068497,-615.92,0.00010884,2]
[348061928,1736289068508,-549.58,0.00010884,2]
[348061929,1736289068517,-6233.52,0.00010884,2]
[348061930,1736289068527,-2790.08,0.00010884,2]
[348061931,1736289068536,-2515.07,0.00010884,2]
[348061932,1736289068545,-4426.47,0.00010884,2]
[348061933,1736289068554,-2595.01,0.00010884,2]
[348061934,1736289068564,-500.0,0.00010885,2]
[348061935,1736289068573,-1327.37,0.00010885,2]
[348061936,1736289068584,-567.93,0.00010885,2]
[348061937,1736289068594,-500.0,0.00010885,2]
[348061938,1736289068604,-500.0,0.00010885,2]
[348061939,1736289068613,-504.77,0.00010885,2]
[348061940,1736289068623,-638.96,0.00010885,2]
[348061941,1736289068632,-4402.73,0.00010885,2]
[348061942,1736289068641,-500.0,0.00010885,2]
[348061943,1736289068650,-500.0,0.00010885,2]
[348061944,1736289068659,-621.59,0.00010885,2]
[348061945,1736289068669,-500.0,0.00010885,2]
[348061946,1736289068678,-685.72,0.00010885,2]
[348061947,1736289068687,-432.51137403,0.00010885,2]
[348061948,1736289068699,-67.48862597,0.00010885,2]
[348061949,1736289068708,-500.0,0.00010885,2]
[348061950,1736289068718,-500.18,0.00010885,2]
[348061951,1736289068727,-500.0,0.00010885,2]
[348061952,1736289068737,-680.79,0.00010885,2]
[348061953,1736289068748,-500.0,0.00010885,2]
[348061954,1736289068757,-500.0,0.00010885,2]
[348061955,1736289068766,-500.0,0.00010885,2]
[348061956,1736289068775,-664.13,0.00010885,2]
[348061957,1736289068784,-500.0,0.00010885,2]
[348061958,1736289068793,-570.75,0.00010885,2]
[348061959,1736289068802,-500.0,0.00010885,2]
[348061960,1736289068811,-1832.42,0.00010885,2]
[348061961,1736289068821,-500.0,0.00010885,2]
[348061962,1736289068830,-233.65,0.00010885,2]
[348061963,1736289068839,-804.07,0.00010885,2]
[348061964,1736289068848,-500.0,0.00010885,2]
[348061965,1736289068857,-1897.88,0.00010885,2]
[348061966,1736289068867,-500.0,0.00010885,2]
[348061967,1736289068876,-582.78,0.00010885,2]
[348061968,1736289068885,-906.61,0.00010885,2]
[348061969,1736289068894,-792.63,0.00010885,2]
[348061970,1736289068904,-500.0,0.00010885,2]
[348061971,1736289068914,-500.0,0.00010885,2]
[348061972,1736289068923,-500.0,0.00010885,2]
[348061973,1736289068933,-500.0,0.00010885,2]
[348061974,1736289068942,-857.24,0.00010885,2]
[348061975,1736289068951,-500.0,0.00010885,2]
[348061976,1736289068959,-500.0,0.00010885,2]
[348061977,1736289068968,-500.0,0.00010885,2]
[348061978,1736289068977,-500.0,0.00010885,2]
[348061979,1736289068986,-500.0,0.00010885,2]
[348061980,1736289069000,-500.0,0.00010885,2]
[348061981,1736289069009,-500.0,0.00010885,2]
[348061982,1736289069019,-2105.46,0.00010885,2]
[348061983,1736289069028,-500.0,0.00010885,2]
[348061984,1736289069038,-500.0,0.00010885,2]
[348061985,1736289069047,-500.0,0.00010885,2]
[348061986,1736289069056,-500.0,0.00010885,2]
[348061987,1736289069066,-718.77,0.00010885,2]
[348061988,1736289069076,-1259.21,0.00010885,2]
[348061989,1736289069086,-500.0,0.00010885,2]
[348061990,1736289069095,-500.0,0.00010885,2]
[348061991,1736289069104,-500.0,0.00010885,2]
[348061992,1736289069114,-500.0,0.00010885,2]
[348061993,1736289069123,-1308.87,0.00010885,2]
[348061994,1736289069132,-500.0,0.00010885,2]
[348061995,1736289069141,-1042.96,0.00010885,2]
[348061996,1736289069150,-500.0,0.00010885,2]
[348061997,1736289069159,-782.24,0.00010885,2]
[348061998,1736289069168,-500.0,0.00010885,2]
[348061999,1736289069178,-500.0,0.00010885,2]
[348062000,1736289069188,-615.22,0.00010885,2]
[348062001,1736289069197,-500.0,0.00010885,2]
[348062002,1736289069206,-1859.46,0.00010885,2]
[348062003,1736289069215,-500.0,0.00010885,2]
[348062004,1736289069224,-675.14,0.00010885,2]
[348062005,1736289069233,-500.0,0.00010885,2]
[348062006,1736289069243,-500.0,0.00010885,2]
[348062007,1736289069257,-2418.79,0.00010885,2]
[348062008,1736289069266,-500.0,0.00010885,2]
[348062009,1736289069275,-125.90383403,0.00010885,2]
[348062010,1736289193282,500.0,0.00022607,120]
[348062011,1736289196191,2000.0,0.00022139,120]
[348062012,1736289478353,435.74538218,0.00021987,120]
[348062013,1736289555964,1646.56,8.219e-05,2]
[348062015,1736289792520,227.62134,0.0002257,120]
[348062016,1736289795069,2000.0,0.0002257,120]
[348062017,1736289833298,204.121846,0.0002257,120]
[348062022,1736290232188,-250.0,8.821e-05,2]
[348062023,1736290232198,-26372.76463088,8.95e-05,2]
[348062024,1736290232207,-250.0,8.951e-05,2]
[348062025,1736290232216,-150.0,8.986e-05,2]
[348062026,1736290232226,-150.0,9.003e-05,2]
[348062027,1736290232236,-500.0,9.004e-05,2]
[348062028,1736290232245,-500.0,9.004e-05,2]
[348062029,1736290232254,-500.0,9.004e-05,2]
[348062030,1736290232263,-500.0,9.004e-05,2]
[348062031,1736290232274,-569.03,9.004e-05,2]
[348062032,1736290232283,-500.0,9.004e-05,2]
[348062033,1736290232292,-280.89,9.004e-05,2]
[348062034,1736290232301,-500.0,9.004e-05,2]
[348062035,1736290232310,-619.27,9.004e-05,2]
[348062036,1736290232320,-500.0,9.004e-05,2]
[348062037,1736290232329,-500.0,9.004e-05,2]
[348062038,1736290232344,-500.0,9.004e-05,2]
[348062039,1736290232354,-500.0,9.004e-05,2]
[348062040,1736290232365,-500.0,9.004e-05,2]
[348062041,1736290232375,-500.0,9.004e-05,2]
[348062042,1736290232386,-500.0,9.004e-05,2]
[348062043,1736290232395,-500.0,9.004e-05,2]
[348062044,1736290232405,-500.0,9.004e-05,2]
[348062045,1736290232416,-550.51883907,9.004e-05,2]
[348062046,1736290232425,-500.0,9.004e-05,2]
[348062047,1736290232435,-500.0,9.004e-05,2]
[348062048,1736290232445,-66.98822386,9.004e-05,2]
[348062049,1736290232477,-433.01177614,9.004e-05,2]
[348062050,1736290232486,-500.0,9.004e-05,2]
[348062051,1736290232496,-563.03052118,9.004e-05,2]
[348062052,1736290232505,-500.0,9.004e-05,2]
[348062053,1736290232514,-500.0,9.004e-05,2]
[348062054,1736290232525,-534.48,9.004e-05,2]
[348062055,1736290232535,-500.0,9.004e-05,2]
[348062056,1736290232544,-500.0,9.004e-05,2]
[348062057,1736290232554,-465.61814988,9.004e-05,2]
[348062058,1736290232575,-85.80185012,9.004e-05,2]
[348062059,1736290232584,-284.50968094,9.004e-05,2]
[348062060,1736290232595,-215.49031906,9.004e-05,2]
[348062061,1736290232604,-500.0,9.004e-05,2]
[348062062,1736290232614,-500.0,9.004e-05,2]
[348062063,1736290232623,-500.0,9.004e-05,2]
[348062064,1736290232633,-500.0,9.004e-05,2]
[348062065,1736290232642,-500.0,9.004e-05,2]
[348062066,1736290232652,-500.0,9.004e-05,2]
[348062067,1736290232661,-500.0,9.004e-05,2]
[348062068,1736290232670,-500.0,9.004e-05,2]
[348062069,1736290232680,-84.50968094,9.004e-05,2]
[348062070,1736290232691,-414.7679528,9.004e-05,2]
[348062071,1736290232703,-0.72236626,9.004e-05,2]
[348062072,1736290232916,-500.0,9.004e-05,2]
[348062073,1736290232926,-475.83947211,9.004e-05,2]
[348062074,1736290232936,-500.0,9.004e-05,2]
[348062076,1736290232946,-673.43,9.004e-05,2]
[348062078,1736290232956,-500.0,9.004e-05,2]
[348062080,1736290232965,-500.0,9.004e-05,2]
[348062082,1736290232975,-500.0,9.004e-05,2]
[348062084,1736290232983,-958.43,9.004e-05,2]
[348062086,1736290232992,-500.0,9.004e-05,2]
[348062088,1736290233002,-543.11,9.004e-05,2]
[348062089,1736290233011,-500.0,9.004e-05,2]
[348062090,1736290233021,-500.0,9.004e-05,2]
[348062091,1736290233031,-689.56,9.004e-05,2]
[348062092,1736290233042,-500.0,9.004e-05,2]
[348062093,1736290233052,-500.0,9.004e-05,2]
[348062094,1736290233063,-774.32,9.004e-05,2]
[348062095,1736290233073,-330.91617074,9.004e-05,2]
[348062096,1736290233083,-348.02,9.004e-05,2]
[348062097,1736290233093,-500.0,9.004e-05,2]
[348062098,1736290233103,-500.0,9.004e-05,2]
[348062099,1736290233113,-691.31,9.004e-05,2]
[348062100,1736290233122,-500.0,9.004e-05,2]
[348062101,1736290233132,-500.0,9.004e-05,2]
[348062102,1736290233142,-2.43481768,9.004e-05,2]
[348062103,1736290233187,-345.3348,9.004e-05,2]
[348062104,1736290233210,-152.23038232,9.004e-05,2]
[348062105,1736290233219,-138.31092305,9.004e-05,2]
[348062106,1736290233231,-361.68907695,9.004e-05,2]
[348062107,1736290233241,-500.0,9.004e-05,2]
[348062108,1736290233250,-268.4726683,9.004e-05,2]
[348062109,1736290233261,-231.5273317,9.004e-05,2]
[348062110,1736290233271,-500.0,9.004e-05,2]
[348062111,1736290233280,-500.0,9.004e-05,2]
[348062112,1736290233290,-772.19,9.004e-05,2]
[348062113,1736290233299,-500.0,9.004e-05,2]
[348062114,1736290233309,-500.0,9.004e-05,2]
[348062115,1736290233319,-500.0,9.004e-05,2]
[348062116,1736290233329,-500.0,9.004e-05,2]
[348062117,1736290233340,-500.0,9.004e-05,2]
[348062118,1736290233350,-500.0,9.004e-05,2]
[348062119,1736290233360,-500.0,9.004e-05,2]
[348062120,1736290233370,-500.0,9.004e-05,2]
[348062121,1736290233379,-500.0,9.004e-05,2]
[348062122,1736290233388,-500.0,9.004e-05,2]
[348062123,1736290233397,-500.0,9.004e-05,2]
[348062124,1736290233407,-500.0,9.004e-05,2]
[348062125,1736290233416,-500.0,9.004e-05,2]
[348062126,1736290233425,-500.0,9.004e-05,2]
[348062127,1736290233435,-500.0,9.004e-05,2]
[348062128,1736290233444,-500.0,9.004e-05,2]
[348062129,1736290233453,-500.0,9.004e-05,2]
[348062130,1736290233462,-621.31,9.004e-05,2]
[348062131,1736290233472,-500.0,9.004e-05,2]
[348062132,1736290233483,-500.0,9.004e-05,2]
[348062133,1736290233492,-528.04,9.004e-05,2]
[348062134,1736290233501,-993.08,9.004e-05,2]
[348062135,1736290233511,-993.08,9.004e-05,2]
[348062136,1736290233520,-993.08,9.004e-05,2]
[348062137,1736290233530,-993.08,9.004e-05,2]
[348062138,1736290233540,-993.08,9.004e-05,2]
[348062139,1736290233549,-993.08,9.004e-05,2]
[348062140,1736290233558,-481.40478044,9.004e-05,2]
[348062141,1736290233569,-371.34408648,9.004e-05,2]
[348062142,1736290233588,-140.33113308,9.004e-05,2]
[348062143,1736290233597,-993.08,9.004e-05,2]
[348062144,1736290233607,-993.08,9.004e-05,2]
[348062145,1736290233617,-993.08,9.004e-05,2]
[348062146,1736290233626,-993.08,9.004e-05,2]
[348062147,1736290233635,-993.08,9.004e-05,2]
[348062148,1736290233644,-993.08,9.004e-05,2]
[348062149,1736290233653,-993.08,9.004e-05,2]
[348062150,1736290233663,-993.08,9.004e-05,2]
[348062151,1736290233673,-993.08,9.004e-05,2]
[348062152,1736290233682,-993.08,9.004e-05,2]
[348062153,1736290233691,-993.08,9.004e-05,2]
[348062154,1736290233700,-500.0,9.004e-05,2]
[348062155,1736290233710,-993.08,9.004e-05,2]
[348062156,1736290233718,-62.57605774,9.004e-05,2]
[348062157,1736290233730,-930.50394226,9.004e-05,2]
[348062158,1736290233739,-993.08,9.004e-05,2]
[348062159,1736290233749,-737.57,9.004e-05,2]
[348062160,1736290233758,-993.08,9.004e-05,2]
[348062161,1736290233768,-993.08,9.004e-05,2]
[348062162,1736290233777,-993.11,9.004e-05,2]
[348062163,1736290233788,-500.0,9.004e-05,2]
[348062164,1736290233797,-950.49,9.004e-05,2]
[348062165,1736290233806,-500.0,9.004e-05,2]
[348062166,1736290233815,-500.0,9.004e-05,2]
[348062167,1736290233824,-500.0,9.004e-05,2]
[348062168,1736290233833,-500.0,9.004e-05,2]
[348062169,1736290233843,-500.0,9.004e-05,2]
[348062170,1736290233854,-599.43,9.004e-05,2]
[348062171,1736290233863,-549.76,9.004e-05,2]
[348062172,1736290233873,-500.0,9.004e-05,2]
[348062173,1736290233883,-492.57,9.004e-05,2]
[348062174,1736290233892,-919.61,9.004e-05,2]
[348062175,1736290233902,-500.0,9.004e-05,2]
[348062176,1736290233912,-500.0,9.004e-05,2]
[348062177,1736290233922,-500.0,9.004e-05,2]
[348062178,1736290233932,-500.0,9.004e-05,2]
[348062179,1736290233941,-500.0,9.004e-05,2]
[348062180,1736290233951,-500.0,9.004e-05,2]
[348062181,1736290233961,-500.0,9.004e-05,2]
[348062182,1736290233970,-621.11,9.004e-05,2]
[348062183,1736290233980,-1305.48,9.004e-05,2]
[348062184,1736290233990,-500.0,9.004e-05,2]
[348062185,1736290234000,-554.96,9.004e-05,2]
[348062186,1736290234010,-548.01,9.004e-05,2]
[348062187,1736290234020,-614.21,9.004e-05,2]
[348062188,1736290234032,-500.0,9.004e-05,2]
[348062189,1736290234042,-614.86,9.004e-05,2]
[348062190,1736290234051,-734.14,9.004e-05,2]
[348062191,1736290234061,-500.0,9.004e-05,2]
[348062192,1736290234071,-763.53,9.004e-05,2]
[348062193,1736290234081,-500.0,9.004e-05,2]
[348062194,1736290234091,-564.05,9.004e-05,2]
[348062195,1736290234100,-738.71,9.004e-05,2]
[348062196,1736290234110,-500.0,9.004e-05,2]
[348062197,1736290234119,-500.0,9.004e-05,2]
[348062198,1736290234129,-500.0,9.004e-05,2]
[348062199,1736290234138,-698.98,9.004e-05,2]
[348062200,1736290234149,-500.0,9.004e-05,2]
[348062201,1736290234159,-592.18,9.004e-05,2]
[348062202,1736290234168,-500.0,9.004e-05,2]
[348062203,1736290234177,-654.74,9.004e-05,2]
[348062204,1736290234187,-500.0,9.004e-05,2]
[348062205,1736290234198,-16.07298469,9.004e-05,2]
[348062206,1736290234210,-530.94701531,9.004e-05,2]
[348062207,1736290234220,-500.0,9.004e-05,2]
[348062208,1736290234230,-49.84533037,9.004e-05,2]
[348062209,1736290234242,-595.06466963,9.004e-05,2]
[348062210,1736290234252,-433.72533037,9.004e-05,2]
[348062215,1736290238354,-69.69466963,9.004e-05,2]
[348062216,1736290238364,-500.0,9.004e-05,2]
[348062217,1736290238373,-500.0,9.004e-05,2]
[348062218,1736290238383,-500.0,9.004e-05,2]
[348062219,1736290238393,-304.31234649,9.004e-05,2]
[348062220,1736290238403,-500.0,9.004e-05,2]
[348062221,1736290238413,-500.0,9.004e-05,2]
[348062222,1736290238423,-500.0,9.004e-05,2]
[348062223,1736290238433,-500.0,9.004e-05,2]
[348062224,1736290238443,-500.0,9.004e-05,2]
[348062225,1736290238452,-499.46235999,9.004e-05,2]
[348062226,1736290238464,-171.56764001,9.004e-05,2]
[348062227,1736290238474,-500.0,9.004e-05,2]
[348062229,1736290238483,-500.0,9.004e-05,2]
[348062231,1736290238493,-500.0,9.004e-05,2]
[348062234,1736290238503,-500.0,9.004e-05,2]
[348062236,1736290238513,-500.0,9.004e-05,2]
[348062237,1736290238522,-500.0,9.004e-05,2]
[348062239,1736290238531,-500.0,9.004e-05,2]
[348062241,1736290238540,-399.23235999,9.004e-05,2]
[348062243,1736290238552,-100.76764001,9.004e-05,2]
[348062246,1736290238562,-663.29,9.004e-05,2]
[348062247,1736290238571,-895.43,9.004e-05,2]
[348062249,1736290238580,-500.0,9.004e-05,2]
[348062251,1736290238589,-500.0,9.004e-05,2]
[348062253,1736290238599,-500.0,9.004e-05,2]
[348062255,1736290238609,-500.0,9.004e-05,2]
[348062257,1736290238618,-427.65133111,9.004e-05,2]
[348062260,1736290238631,-72.34866889,9.004e-05,2]
[348062262,1736290238641,-500.0,9.004e-05,2]
[348062264,1736290238651,-500.0,9.004e-05,2]
[348062266,1736290238660,-500.0,9.004e-05,2]
[348062268,1736290238669,-500.0,9.004e-05,2]
[348062270,1736290238678,-500.0,9.004e-05,2]
[348062272,1736290238687,-508.79,9.004e-05,2]
[348062274,1736290238697,-321.3,9.004e-05,2]
[348062276,1736290238707,-500.0,9.004e-05,2]
[348062278,1736290238717,-653.72,9.004e-05,2]
[348062280,1736290238726,-620.36,9.004e-05,2]
[348062282,1736290238736,-500.0,9.004e-05,2]
[348062283,1736290238745,-500.0,9.004e-05,2]
[348062285,1736290238754,-591.06,9.004e-05,2]
[348062287,1736290238763,-500.0,9.004e-05,2]
[348062289,1736290238772,-593.7,9.004e-05,2]
[348062291,1736290238781,-500.0,9.004e-05,2]
[348062293,1736290238791,-500.0,9.004e-05,2]
[348062295,1736290238800,-623.39,9.004e-05,2]
[348062297,1736290238810,-1369.89,9.004e-05,2]
[348062299,1736290238819,-500.0,9.004e-05,2]
[348062301,1736290238829,-500.0,9.004e-05,2]
[348062304,1736290238838,-971.26,9.004e-05,2]